Cogmind - Beta 13 @@@ ROGUE MODE // 2024.04.10 @ 11:30:04 Player: Atelerd Result: Destroyed by S-27 Virus with Autogun Performance ------------- Evolutions (4) 2000 Regions Visited (16) 3200 Robots Destroyed (211) 1055 Value Destroyed (7438) 7438 Prototype IDs (37) 740 Alien Tech Used (0) 0 Bonus (4724) 4724 TOTAL SCORE: 19157 Bonus ------- High Alert Combat Kills 668 Follower Combat Kills 2222 Entered Garrisons 400 Used RIF Installer 1000 Entered DSFs 500 Aligned with FarCom 300 Friendly Fire -366 Cogmind --------- Core Integrity 0/850 Matter 73/300 Energy 95/100 System Corruption 20% Temperature Cool (0) Movement Core (750) Ox14 Location -6/Factory Parts ------- > --- POWER (1) -------- (None) > --- PROPULSION (4) --- (None) > --- UTILITY (8) ------ High-capacity Storage Unit Hacking Suite Hacking Suite Advanced System Shield Relay Coupler [Swarmer] (4) Relay Coupler [Sentry] (7) > --- WEAPON (2) ------- Shock Maul > --- INVENTORY (20) --- Matter Compressor (0) Remote Shield Advanced System Shield Relay Coupler [Swarmer] (47) Relay Coupler [Cutter] (27) Relay Coupler [Cutter] (29) Relay Coupler [Brawler] (21) Relay Coupler [Brawler] (27) Relay Coupler [Duelist] (26) Relay Coupler [Sentry] (25) Relay Coupler [Sentry] (23) Scatter Rocket Array Remote Datajack Powered Hammer Peak State ------------ > --- POWER ------------ F-cell Engine > --- PROPULSION ------- Armored Huge Wheel Armored Huge Wheel > --- UTILITY ---------- High-capacity Storage Unit Advanced Melee Analysis Suite Remote Shield Hacking Suite Hacking Suite Advanced System Shield Advanced System Shield Relay Coupler [Specialist] > --- WEAPON ----------- Scatter Rocket Array Chainsword > --- INVENTORY -------- Advanced System Shield Authchip [Processor] Relay Coupler [Swarmer] Relay Coupler [Swarmer] Relay Coupler [Cutter] Relay Coupler [Cutter] Relay Coupler [Brawler] Relay Coupler [Brawler] Relay Coupler [Duelist] Relay Coupler [Sentry] Relay Coupler [Sentry] Relay Coupler [Sentry] Supersonic Drone Bay Heavy Plasma Cannon Remote Datajack Remote Datajack [Rating: 72] Favorites ----------- Power Heavy Ion Engine Engine Heavy Ion Engine Power Core Micro Nuclear Core Reactor Cold Fusion Reactor Propulsion Wheel Treads Improved Treads Leg Carbon-fiber Leg Wheel Wheel Hover Unit Combat Airjet Flight Unit Field Propulsion Drive Utility High-capacity Storage Unit Device Improved Heat Sink Storage High-capacity Storage Unit Processor Target Analyzer Hackware Hacking Suite Protection Light Armor Plating Weapon EM Pulse Cannon Energy Gun Precision Beam Rifle Energy Cannon EM Pulse Cannon Ballistic Gun Assault Rifle Ballistic Cannon Bore Cannon Launcher Improved Grenade Launcher Special Weapon Remote Datajack Impact Weapon Maul Slashing Weapon Katana Build | -11 -10 -10 -9 -9 -9 -8 -8 -8 -8 -7 -7 -7 -7 -6 -6 -6 ------- Run | Yrd Mat Min Mat Min Exi Min Mat Gar Mat Fac Gar Fac DSF Fac Was Fac Slots Evolved 8 | . . . 2 . . . 2 . . 2 . . . 2 . . Power . | . . . . . . . . . . . . . . . . . Propulsion 2 | . . . 1 . . . . . . 1 . . . . . . Utility 6 | . . . 1 . . . 2 . . 1 . . . 2 . . Weapon . | . . . . . . . . . . . . . . . . . Parts Attached 296 | 6 12 3 39 4 . 5 24 36 11 59 36 . 11 24 3 23 Power 20 | 1 1 . 3 . . . 2 2 1 7 1 . . 2 . . Engine 13 | 1 1 . 3 . . . 1 1 1 4 . . . 1 . . Core 6 | . . . . . . . 1 1 . 3 1 . . . . . Reactor 1 | . . . . . . . . . . . . . . 1 . . Propulsion 59 | 2 1 . 7 3 . . 6 5 3 12 15 . 2 2 . 1 Treads 5 | . . . 1 . . . 2 1 . 1 . . . . . . Leg 10 | . . . . . . . . . . . 10 . . . . . Wheel 40 | 2 1 . 6 2 . . 3 4 1 11 5 . 2 2 . 1 Hover 2 | . . . . 1 . . 1 . . . . . . . . . Flight 2 | . . . . . . . . . 2 . . . . . . . Utility 89 | 1 2 . 8 1 . 1 5 9 3 22 11 . 9 8 . 9 Device 16 | . . . 1 . . . 2 2 . 5 . . 2 3 . 1 Storage 4 | 1 1 . 1 . . . . . . . . . . . . 1 Processor 4 | . . . 2 . . . . . . 1 . . . . . 1 Hackware 31 | . . . . . . . . 1 1 6 11 . 4 4 . 4 Protection 34 | . 1 . 4 1 . 1 3 6 2 10 . . 3 1 . 2 Artifact . | . . . . . . . . . . . . . . . . . Weapon 128 | 2 8 3 21 . . 4 11 20 4 18 9 . . 12 3 13 Energy Gun 11 | 1 . . 1 . . . 1 3 2 3 . . . . . . Energy Cannon 37 | . . . 12 . . 2 6 4 . 6 . . . 3 1 3 Ballistic Gun 17 | 1 4 1 6 . . . 1 4 . . . . . . . . Ballistic Cannon 12 | . . 1 . . . . . 3 . 2 2 . . 3 1 . Launcher 23 | . 4 1 2 . . 2 3 2 . . 3 . . 1 1 4 Special Weapon 8 | . . . . . . . . . . 2 2 . . 2 . 2 Impact Weapon 7 | . . . . . . . . 4 . . . . . . . 3 Slashing Weapon 13 | . . . . . . . . . 2 5 2 . . 3 . 1 Piercing Weapon . | . . . . . . . . . . . . . . . . . Special Melee Weapon . | . . . . . . . . . . . . . . . . . Unidentified Prototypes 14 | . . . 4 . . . 5 . . 1 . . . 3 . 1 Parts Lost 48 | . 2 1 7 . . 1 12 3 7 1 4 . . 2 . 8 Power 5 | . . 1 1 . . . 2 . . . . . . . . 1 Propulsion 17 | . 2 . 2 . . . 4 . 2 1 4 . . . . 2 Utility 14 | . . . 1 . . 1 2 3 4 . . . . 1 . 2 Weapon 12 | . . . 3 . . . 4 . 1 . . . . 1 . 3 Highest Loss Streak 7 | . 1 1 2 . . 1 5 1 7 1 3 . . 1 . 6 To Critical Strikes . | . . . . . . . . . . . . . . . . . Average Slot Usage (%) 89 | . 83 77 92 100 100 99 95 94 85 80 92 100 94 84 75 77 Engine 5 | . 14 6 6 11 11 11 5 6 5 1 . . . 3 6 5 Core 2 | . . . . . . . 2 2 3 5 7 7 7 2 . . Treads 3 | . . . 10 6 . . . 9 7 1 . . . . . . Leg 1 | . . . . . . . . . . . 11 . . . . . Wheel 19 | . 23 14 21 22 22 22 16 17 18 23 18 30 25 12 13 12 Hover 1 | . . . . 4 11 11 8 . . . . . . . . . Device 4 | . . . 3 . . . 9 14 8 3 . . . 5 11 3 Storage 9 | . 14 14 13 11 11 11 9 9 9 7 7 7 7 6 6 6 Processor 2 | . . . 3 11 11 11 8 . . 1 . . . . . 2 Hackware 12 | . . . . . . . . 2 3 9 28 38 33 39 26 34 Protection 8 | . 2 14 10 11 11 10 16 14 13 8 2 . 3 . . . Energy Cannon 5 | . . . 13 22 22 3 13 5 . 5 . . . 2 4 1 Ballistic Gun 2 | . 21 9 4 . . . . 2 . . . . . . . . Ballistic Cannon 2 | . . 9 1 . . . . 5 11 1 . . . 4 3 . Launcher 1 | . 5 8 1 . . 18 . . . . 1 . . . 1 . Special Weapon 1 | . . . . . . . . . . 3 6 7 7 1 . 1 Slashing Weapon 1 | . . . . . . . . . . 2 5 7 7 3 . 3 Naked Turns . | . . . . . . . . . . . . . . . . . Heaviest Build 96 | 14 53 54 62 63 63 63 69 96 96 96 73 51 58 80 80 80 Greatest Support 91 | 26 26 16 42 32 26 26 45 45 40 46 91 48 56 56 56 56 Greatest Overweight (x) 9 | . 3 3 5 2 2 2 4 4 3 9 5 1 1 2 1 3 Average Overweight (x) 1 | . . 2 1 1 2 2 1 2 2 1 . 1 . . 1 . Largest Inventory Capacity 20 | 8 20 20 20 20 20 20 20 20 20 20 20 20 20 20 20 20 Average Capacity 19 | 7 12 20 20 20 20 20 20 20 20 20 20 20 20 20 20 20 Most Carried 20 | 5 11 16 20 20 20 20 20 20 20 20 20 20 20 20 20 18 Average Carried 18 | . 5 13 19 19 20 19 17 19 19 18 18 20 19 18 18 16 Final Capacity 20 | 8 20 20 20 20 20 20 20 20 20 20 20 20 20 20 20 20 Final Carried 20 | . 11 16 20 20 20 19 20 20 16 18 20 20 20 18 18 14 Class Distribution -------------------- 35% | Mutant 33% | Bothacker-Mutant 26% | Scavenger-Mutant Dominant Class ---------------- Mutant | -10/Materials Mutant | -10/Mines Mutant | -9/Materials Mutant | -9/Mines Scavenger-Mutant | -9/Exiles Scavenger-Mutant | -8/Mines Scavenger-Mutant | -8/Materials Scavenger-Mutant | -8/Garrison Mutant | -8/Materials Bothacker-Mutant | -7/Factory Bothacker-Mutant | -7/Garrison Bothacker-Mutant | -7/Factory Bothacker-Mutant | -7/DSF Bothacker-Mutant | -6/Factory Bothacker-Mutant | -6/Waste Bothacker-Mutant | -6/Factory Resources | -11 -10 -10 -9 -9 -9 -8 -8 -8 -8 -7 -7 -7 -7 -6 -6 -6 ----------- Run | Yrd Mat Min Mat Min Exi Min Mat Gar Mat Fac Gar Fac DSF Fac Was Fac Matter Collected 7360 | 239 623 182 1259 50 . 63 409 1068 474 1156 782 . 154 341 249 311 Remotely . | . . . . . . . . . . . . . . . . . Salvage Created 8191 | . 673 65 1539 182 . 338 659 1132 504 893 780 . . 589 157 680 Parts 406 | . 36 2 96 11 . 23 35 53 38 43 26 . . 23 . 20 Haulers Intercepted 13 | . 1 . 5 . . . 2 . . 2 . . . 2 . 1 Recyclers Shooed 9 | . 4 . 2 . . . 1 . 1 . . . . 1 . . Parts Field Recycled . | . . . . . . . . . . . . . . . . . Retrieved Matter . | . . . . . . . . . . . . . . . . . Parts Self-Destructed . | . . . . . . . . . . . . . . . . . Prevented . | . . . . . . . . . . . . . . . . . Kills | -11 -10 -10 -9 -9 -9 -8 -8 -8 -8 -7 -7 -7 -7 -6 -6 -6 ------- Run | Yrd Mat Min Mat Min Exi Min Mat Gar Mat Fac Gar Fac DSF Fac Was Fac Combat Hostiles Destroyed 146 | . 18 2 21 3 . 15 18 20 12 9 11 . . 5 1 11 Melee 6 | . . . . . . . . . . . 3 . . . . 3 Guns 20 | . 6 1 2 . . . 3 8 . . . . . . . . Cannons 53 | . . . 10 2 . 3 5 8 10 8 1 . . 5 . 1 AOE 63 | . 12 1 9 . . 12 10 4 2 . 7 . . . 1 5 Classes Destroyed 18 | . 6 . 4 1 . 1 1 2 . 1 . . . 1 1 . Worker 16 | . 3 . 4 1 . . 1 . 2 5 . . . . . . Builder 8 | . . . 3 . . . 1 . 3 1 . . . . . . Tunneler 3 | . . . 1 1 . . . . . 1 . . . . . . Hauler 13 | . 1 . 5 . . . 2 . . 2 . . . 2 . 1 Recycler 11 | . 3 . 5 . . . . . 1 1 . . . 1 . . Mechanic 1 | . . . . . . . . . . . . . . 1 . . Operator 1 | . . . 1 . . . . . . . . . . . . . Watcher 11 | . 2 . 4 . . . 3 . 1 . . . . 1 . . Swarmer 38 | . 6 . 3 . . 7 9 4 5 . 3 . . 1 . . Cutter 3 | . . . . . . . . 2 . . 1 . . . . . Grunt 76 | . 12 2 10 2 . 7 7 7 4 8 7 . . 2 . 8 Brawler 2 | . . . . . . . . 2 . . . . . . . . Duelist 2 | . . . . . . 1 . . 1 . . . . . . . Sentry 16 | . . . 8 . . . 1 5 2 . . . . . . . Hunter 2 | . . . . . . . 1 . . . . . . 1 . . Programmer 6 | . . . . . . . . . . 2 . . . 1 . 3 Compactor 1 | . . . . . . . . . . . . . . . 1 . Assembled 1 | . . . . 1 . . . . . . . . . . . . Guerrilla 1 | . . . . . . . . 1 . . . . . . . . Best Kill Streak 13 | . 13 2 10 2 . 5 12 5 4 3 4 . . 2 1 5 Combat Bots Only 10 | . 5 2 4 2 . 5 10 5 3 2 4 . . 1 1 4 Max Kills in Single Turn 4 | . 3 2 3 1 . 4 4 3 2 1 3 . . 2 1 1 Gunslinging . | . . . . . . . . . . . . . . . . . Exploded 4 | . 3 1 2 . . 4 4 2 1 . 3 . . . 1 1 Melee 1 | . . . . . . . . . . . 1 . . . . 1 Uniques/NPCs Destroyed . | . . . . . . . . . . . . . . . . . Combat | -11 -10 -10 -9 -9 -9 -8 -8 -8 -8 -7 -7 -7 -7 -6 -6 -6 -------- Run | Yrd Mat Min Mat Min Exi Min Mat Gar Mat Fac Gar Fac DSF Fac Was Fac Hostile Shots Fired 935 | . 61 13 72 14 . 24 100 93 167 123 75 . 3 36 1 153 Missed 283 | . 20 7 21 2 . 6 29 27 55 38 26 . 1 10 . 41 Damage Taken 10185 | . 492 88 906 153 . 345 992 687 1931 1279 666 . 114 444 42 2046 Core 1853 | . 151 24 91 31 . 70 171 131 217 33 79 . . 111 42 702 Absorbed by Shields 102 | . . . . . . . . . . . 4 . . 81 13 4 Redirected to Shielding 48 | . . . 48 . . . . . . . . . . . . . Regen/Repaired (Parts) 235 | . . . . . . . . . . . . . . 220 . 15 Core Remaining (%) 54 | 100 . 30 . . . 52 . . 5 . . . 84 . . . Volleys Fired 526 | . 43 4 64 12 . 12 29 117 41 81 45 . 1 41 9 27 Largest 2 | . 2 2 2 2 . 2 2 2 2 2 1 . 1 2 2 2 Hottest 149 | . 60 50 131 126 . 126 136 129 122 149 48 . 5 143 143 140 Shots Fired 858 | . 77 6 126 24 . 23 55 211 81 107 45 . 1 54 15 33 Gun 224 | . 60 3 41 . . . 10 77 25 8 . . . . . . Cannon 473 | . . 1 74 24 . 8 39 128 56 74 5 . . 44 13 7 Launcher 85 | . 17 2 11 . . 15 6 6 . . 13 . . . 2 13 Special 76 | . . . . . . . . . . 25 27 . 1 10 . 13 Kinetic 336 | . 60 4 63 . . . . 97 56 22 5 . . 23 6 . Thermal 217 | . . . 1 . . . 40 108 . 33 . . . 21 7 7 Explosive 75 | . 17 2 11 . . 15 6 6 . . 13 . . . 2 3 Electromagnetic 154 | . . . 51 24 . 8 9 . 25 27 . . . . . 10 Robot Hit Streak 33 | . 13 2 11 21 . 4 7 33 9 8 9 . 3 6 7 6 Robot Miss Streak 8 | . 2 2 4 3 . 1 3 3 8 6 4 . . 3 4 3 Penetration Max 1 | . . . . . . . . 1 1 . . . . . . . Secondary Targets 2 | . 2 . . . . . . . . . . . . . . . Max Gunslinging Chain 1 | . 1 . . . . . . . . . . . . . . . Shots Hit Robots 547 | . 49 2 78 16 . 12 33 118 38 72 50 . 1 38 12 28 Core Hits 325 | . 39 4 51 3 . 27 42 53 19 23 25 . . 13 4 22 Critical Kills 7 | . . . . . . . . 4 2 . . . . 1 . . Critical Parts Destroyed 17 | . 1 . . . . . . 11 2 . . . . . . 3 Critical Strikes 50 | . 1 . 3 3 . . 1 25 6 4 3 . . 1 . 3 Burn 7 | . . . . . . . 1 6 . . . . . . . . Meltdown 3 | . . . . . . . . 2 . . . . . 1 . . Destroy 22 | . 1 . . . . . . 17 4 . . . . . . . Blast 3 | . . . . . . . . . 2 1 . . . . . . Corrupt 6 | . . . 3 3 . . . . . . . . . . . . Smash 3 | . . . . . . . . . . . . . . . . 3 Sever 6 | . . . . . . . . . . 3 3 . . . . . Melee Attacks 179 | . . . . . . . . 25 2 20 99 . . 12 . 21 Impact 43 | . . . . . . . . 25 . . . . . . . 18 Slashing 136 | . . . . . . . . . 2 20 99 . . 12 . 3 Piercing . | . . . . . . . . . . . . . . . . . Sneak Attacks 15 | . . . . . . . . . . 7 2 . . 5 . 1 Combat Hostiles 5 | . . . . . . . . . . . 1 . . 4 . . Follow-up Attacks . | . . . . . . . . . . . . . . . . . Damage Inflicted 20200 | . 1504 105 2642 407 . 1199 2198 3197 1245 1979 1994 . . 1158 1008 1564 Guns 2217 | . 488 12 402 . . . 144 957 159 55 . . . . . . Cannons 7360 | . . . 1153 407 . 154 630 1593 845 1277 53 . . 740 372 136 Explosions 7818 | . 1016 93 1087 . . 1045 1424 578 241 20 834 . . . 636 844 Melee 2805 | . . . . . . . . 69 . 627 1107 . . 418 . 584 Ramming . | . . . . . . . . . . . . . . . . . Kinetic 3835 | . 488 12 616 . . . . 1054 845 240 53 . . 346 181 . Thermal 4596 | . . . 310 . . . 1152 1496 241 583 . . . 394 191 229 Explosive 6039 | . 1016 93 777 . . 1045 830 578 . . 834 . . . 636 230 Electromagnetic 2925 | . . . 939 407 . 154 216 . 159 529 . . . . . 521 Impact 653 | . . . . . . . . 69 . . . . . . . 584 Slashing 2152 | . . . . . . . . . . 627 1107 . . 418 . . Piercing . | . . . . . . . . . . . . . . . . . Highest Corruption 20 | . 1 1 . . . . 3 3 3 11 12 12 12 . 19 20 Average Corruption 6 | . 1 1 . . . . 1 3 3 6 11 12 12 . 10 19 Corruption Purged . | . . . . . . . . . . . . . . . . . Corruption Blocked . | . . . . . . . . . . . . . . . . . Effects 250 | . 6 1 . . . . 5 44 9 67 56 1 12 . 5 44 Message Errors 54 | . 1 . . . . . 2 9 1 15 14 . 2 . . 10 Matter Fused 61 | . 1 1 . . . . . 8 3 20 14 1 3 . 1 9 Heat Flow Errors 38 | . 1 . . . . . 1 10 1 10 5 . 3 . 2 5 Energy Discharges 30 | . . . . . . . . 8 2 4 10 . 1 . . 5 Parts Rejected 5 | . . . . . . . . . . 2 . . 1 . . 2 Parts Fused 5 | . . . . . . . . 2 1 . 2 . . . . . Data Loss (minor) 29 | . 2 . . . . . . 5 1 7 4 . 2 . 1 7 Data Loss (major) 7 | . . . . . . . 1 . . 2 3 . . . . 1 Misfires 7 | . . . . . . . 1 1 . 4 . . . . 1 . Alerts 6 | . . . . . . . . 1 . 1 3 . . . . 1 Misdirections 5 | . . . . . . . . . . . 1 . . . . 4 Weapon Failures 3 | . 1 . . . . . . . . 2 . . . . . . Overload Shots . | . . . . . . . . . . . . . . . . . Overflow Damage 878 | . 9 . 94 39 . 9 138 15 42 125 78 . . 73 . 256 Projectiles 131 | . . . 14 39 . . 24 1 14 28 . . . 11 . . Explosions 273 | . 9 . 80 . . 9 114 14 28 . 16 . . . . 3 Melee 474 | . . . . . . . . . . 97 62 . . 62 . 253 Knockbacks 14 | . . . 1 . . . . 1 2 3 1 . . 3 . 3 Impact 3 | . . . . . . . . . . . . . . . . 3 Kinetic 11 | . . . 1 . . . . 1 2 3 1 . . 3 . . Secondary . | . . . . . . . . . . . . . . . . . Self-Inflicted Damage 673 | . 62 . 211 . . 88 155 58 32 . . . . . . 67 Shots 20 | . 3 . 5 . . 3 3 2 1 . . . . . . 3 Rammed 1 | . . . . . . . . . . 1 . . . . . . Targets Rammed 1 | . . . . . . . . . . 1 . . . . . . Kicked . | . . . . . . . . . . . . . . . . . Crushed . | . . . . . . . . . . . . . . . . . Highest Temperature 413 | . 148 5 129 227 . 216 195 402 244 252 272 . 258 240 338 413 Average Temperature 89 | . 27 3 38 79 . 73 72 112 84 73 98 . 150 74 160 145 Received Heat Transfer 3457 | . 189 30 252 216 . 117 288 576 423 525 273 . . 82 . 486 Effects 7 | . . . . . . . . 3 3 . . . . . . 1 Energy Bleed 3 | . . . . . . . . 2 . . . . . . . 1 Interference 3 | . . . . . . . . . 3 . . . . . . . Short Circuit 1 | . . . . . . . . 1 . . . . . . . . Siege Activations . | . . . . . . . . . . . . . . . . . Robots Corrupted 5 | . . . 2 1 . . . . . 1 . . . . . 1 Combat Hostiles 3 | . . . . 1 . . . . . 1 . . . . . 1 Parts Fried 16 | . . . 9 2 . . 3 . . . . . . . . 2 Impact Corruptions 8 | . . . . . . . . . . . . . . . . 8 Robots Melted 3 | . . . . . . . . 2 . . . . . 1 . . Combat Hostiles . | . . . . . . . . . . . . . . . . . Parts Melted 10 | . . . . . . . . 5 . 2 . . . 3 . . Heat Transferred 7375 | . . . 300 . . . 1510 3015 250 1100 . . . 600 300 300 Parts Sabotaged . | . . . . . . . . . . . . . . . . . Parts Stolen . | . . . . . . . . . . . . . . . . . Parts Stripped . | . . . . . . . . . . . . . . . . . Power Chain Reactions 13 | . . . 5 . . . 2 . 2 1 . . . . . 3 Alert | -11 -10 -10 -9 -9 -9 -8 -8 -8 -8 -7 -7 -7 -7 -6 -6 -6 ------- Run | Yrd Mat Min Mat Min Exi Min Mat Gar Mat Fac Gar Fac DSF Fac Was Fac Peak Influence 1631 | . 486 298 785 319 . 330 403 1631 1360 559 1298 686 824 432 47 213 Initial 794 | . . 144 60 269 . . 39 113 794 507 286 681 480 432 23 . Average 451 | . 272 222 452 179 . 184 162 777 1058 454 855 682 654 144 21 37 Maximum Alert Level 5 | . 2 1 3 1 . 1 2 5 4 2 4 2 3 2 . 1 Low Security (%) 26 | 100 23 22 3 56 . 48 60 5 . . . . . 68 100 99 Level 1 23 | . 67 77 21 43 . 51 34 13 . 20 3 . . 26 . . Level 2 29 | . 9 . 69 . . . 5 28 . 79 27 100 63 4 . . Level 3 11 | . . . 4 . . . . 27 51 . 40 . 36 . . . Level 4 8 | . . . . . . . . 24 48 . 27 . . . . . Level 5 . | . . . . . . . . . . . . . . . . . High Security . | . . . . . . . . . . . . . . . . . Max Security . | . . . . . . . . . . . . . . . . . Sterilizations 1 | . . . . . . . . . . . . . 1 . . . Squads Dispatched 31 | . 4 . 1 . . . 1 . 5 8 . . 1 6 . 5 Investigation 11 | . 4 . 1 . . . 1 . 1 4 . . . . . . Extermination 4 | . . . . . . . . . . 2 . . . 1 . 1 Reinforcement 11 | . . . . . . . . . 2 2 . . 1 4 . 2 Assault 2 | . . . . . . . . . 2 . . . . . . . Garrison 3 | . . . . . . . . . . . . . . 1 . 2 Intercept . | . . . . . . . . . . . . . . . . . Searches Triggered . | . . . . . . . . . . . . . . . . . Construction Impeded 2 | . . . . . . . . . . . . . . 1 . 1 Haulers Reinforced 4 | . . . . . . . . . . 1 . . . 2 . 1 Active Scanning Responses . | . . . . . . . . . . . . . . . . . Cargo Convoy Interrupts . | . . . . . . . . . . . . . . . . . Stealth | -11 -10 -10 -9 -9 -9 -8 -8 -8 -8 -7 -7 -7 -7 -6 -6 -6 --------- Run | Yrd Mat Min Mat Min Exi Min Mat Gar Mat Fac Gar Fac DSF Fac Was Fac Distress Signals 9 | . 1 . 2 . . . 1 . 2 1 1 . . 1 . . Communications Jammed . | . . . . . . . . . . . . . . . . . Distress Signals . | . . . . . . . . . . . . . . . . . Times Spotted 324 | . 22 9 44 5 . 19 22 32 40 36 35 . 5 23 6 26 Peak Tracking Total 13 | . 6 3 6 2 . 4 10 5 13 6 5 . 4 5 3 4 Tactical Retreats 21 | . . 1 . 1 . . 2 3 5 5 . . . 1 . 3 Traps | -11 -10 -10 -9 -9 -9 -8 -8 -8 -8 -7 -7 -7 -7 -6 -6 -6 ------- Run | Yrd Mat Min Mat Min Exi Min Mat Gar Mat Fac Gar Fac DSF Fac Was Fac Traps Triggered 28 | . 1 . . . . . 2 9 . 4 7 . 3 1 . 1 Indirectly . | . . . . . . . . . . . . . . . . . Trap Hack Attempts . | . . . . . . . . . . . . . . . . . Triggered . | . . . . . . . . . . . . . . . . . Disarmed 7 | . . . 6 . . . . . . . . . . 1 . . Reprogrammed . | . . . . . . . . . . . . . . . . . Reused . | . . . . . . . . . . . . . . . . . Traps Extracted . | . . . . . . . . . . . . . . . . . Installed . | . . . . . . . . . . . . . . . . . Triggered . | . . . . . . . . . . . . . . . . . Machines | -11 -10 -10 -9 -9 -9 -8 -8 -8 -8 -7 -7 -7 -7 -6 -6 -6 ---------- Run | Yrd Mat Min Mat Min Exi Min Mat Gar Mat Fac Gar Fac DSF Fac Was Fac Machines Disabled 42 | . 1 . 8 . . 1 3 3 7 6 5 . . 3 . 5 Max in Single Turn 4 | . 1 . 3 . . 1 2 1 3 1 1 . . 1 . 4 Garrison Access 2 | . . . . . . . . . . . . . . 2 . . Garrison Relay 7 | . . . . . . . . 2 . . 5 . . . . . Machines Repaired . | . . . . . . . . . . . . . . . . . Machines Dismantled . | . . . . . . . . . . . . . . . . . Machines Sabotaged . | . . . . . . . . . . . . . . . . . Overloaded Fab Kills . | . . . . . . . . . . . . . . . . . Hacking | -11 -10 -10 -9 -9 -9 -8 -8 -8 -8 -7 -7 -7 -7 -6 -6 -6 --------- Run | Yrd Mat Min Mat Min Exi Min Mat Gar Mat Fac Gar Fac DSF Fac Was Fac Machines Accessed 75 | . 8 . 13 . 1 . 5 5 3 14 4 1 . 16 . 5 Terminals 53 | . 7 . 11 . . . 4 5 1 7 4 1 . 10 . 3 Fabricators 4 | . . . . . . . . . . 2 . . . 1 . 1 Repair Stations 4 | . . . . . . . . . 1 1 . . . 1 . 1 Recycling Units 5 | . 1 . 1 . . . . . . 2 . . . 1 . . Scanalyzers 3 | . . . 1 . . . . . 1 1 . . . . . . Garrison Access 5 | . . . . . . . 1 . . 1 . . . 3 . . Total Hacks 201 | . 25 . 39 . 1 . 15 10 8 34 5 2 . 48 . 14 Successful 103 | . 8 . 24 . 1 . 7 3 4 16 2 1 . 31 . 6 Failed 98 | . 17 . 15 . . . 8 7 4 18 3 1 . 17 . 8 Catastrophic 20 | . . . 4 . . . 3 2 . 4 3 . . 2 . 2 Database Lockouts . | . . . . . . . . . . . . . . . . . Manual 56 | . . . 12 1 1 . 11 . 3 11 . . . 15 . 2 Terminals 145 | . 22 . 33 . . . 13 10 3 14 5 2 . 34 . 9 Fabricators 11 | . . . . . . . . . . 6 . . . 3 . 2 Repair Stations 12 | . . . . . . . . . 2 3 . . . 4 . 3 Recycling Units 12 | . 3 . 1 . . . . . . 5 . . . 3 . . Scanalyzers 12 | . . . 5 . . . . . 3 4 . . . . . . Garrison Access 8 | . . . . . . . 2 . . 2 . . . 4 . . Terminal Hacks 53 | . 7 . 16 . 1 . 4 3 1 1 2 1 . 15 . 2 Record 1 | . . . 1 . . . . . . . . . . . . . Part Schematic 1 | . . . . . . . . . . . . . . . . 1 Robot Analysis 1 | . . . 1 . . . . . . . . . . . . . Open Door 2 | . . . . . . . . 1 . . 1 . . . . . Open DSF 1 | . . . . . . . . . . . . 1 . . . . Level Access Points 2 | . . . . . . . 1 . . . . . . 1 . . Branch Access Points 2 | . . . 1 . . . . . . . . . . 1 . . Emergency Access Points 2 | . 1 . . . . . . . . . . . . 1 . . Terminal Index 3 | . . . 1 . . . 1 . . . . . . 1 . . Recycling Unit Index 1 | . 1 . . . . . . . . . . . . . . . Scanalyzer Index 1 | . . . 1 . . . . . . . . . . . . . Garrison Index 1 | . . . . . . . . . . . . . . 1 . . Alert Level 5 | . 1 . 3 . . . 1 . . . . . . . . . Unreport Threat 7 | . . . . . . . 1 . 1 1 . . . 4 . . Locate Traps 3 | . . . 1 . . . . . . . . . . 2 . . Disarm Traps 2 | . . . 1 . . . . . . . . . . 1 . . Dispatch Records 1 | . 1 . . . . . . . . . . . . . . . Surveillance Status 1 | . . . 1 . . . . . . . . . . . . . Patrol Status 2 | . . . 2 . . . . . . . . . . . . . Transport Status 1 | . . . . . . . . . . . . . . 1 . . Reinforcement Status 1 | . 1 . . . . . . . . . . . . . . . Hauler Manifests 2 | . . . . . . . . . . . . . . 1 . 1 Registered Components 1 | . 1 . . . . . . . . . . . . . . . Zone Layout 5 | . 1 . 3 . . . . . . . . . . 1 . . Garrison Registry 1 | . . . . . . . . 1 . . . . . . . . Patrol Navigation 1 | . . . . . . . . 1 . . . . . . . . Security Stations 1 | . . . . . . . . . . . 1 . . . . . Derelict Proto ID Bank 1 | . . . . . 1 . . . . . . . . . . . Fabricator Hacks 11 | . . . . . . . . . . 6 . . . 3 . 2 Network Status 3 | . . . . . . . . . . 2 . . . 1 . . Load Schematic 4 | . . . . . . . . . . 2 . . . 1 . 1 Build 4 | . . . . . . . . . . 2 . . . 1 . 1 Repair Station Hacks 7 | . . . . . . . . . . 1 . . . 4 . 2 Scan Component 4 | . . . . . . . . . . 1 . . . 2 . 1 Repair 3 | . . . . . . . . . . . . . . 2 . 1 Recycling Unit Hacks 5 | . 1 . 1 . . . . . . 1 . . . 2 . . Report Inventory 4 | . 1 . 1 . . . . . . 1 . . . 1 . . Retrieve Components 1 | . . . . . . . . . . . . . . 1 . . Scanalyzer 11 | . . . 5 . . . . . 2 4 . . . . . . Insert Component 4 | . . . 2 . . . . . 1 1 . . . . . . Analyze 7 | . . . 3 . . . . . 1 3 . . . . . . Garrison Access Hacks 7 | . . . . . . . 1 . . 2 . . . 4 . . Unlock Access 2 | . . . . . . . 1 . . 1 . . . . . . Seal Access 2 | . . . . . . . . . . . . . . 2 . . Coupler Status 3 | . . . . . . . . . . 1 . . . 2 . . Unauthorized Hacks 9 | . . . 2 . . . 2 . 1 1 . . . 3 . . Terminals 9 | . . . 2 . . . 2 . 1 1 . . . 3 . . Botnet 9 | . . . 2 . . . 2 . 1 1 . . . 3 . . Fabricators . | . . . . . . . . . . . . . . . . . Repair Stations . | . . . . . . . . . . . . . . . . . Recycling Units . | . . . . . . . . . . . . . . . . . Scanalyzers . | . . . . . . . . . . . . . . . . . Garrison Access . | . . . . . . . . . . . . . . . . . Data Cores Recovered 1 | . . . 1 . . . . . . . . . . . . . Used 1 | . . . 1 . . . . . . . . . . . . . Hacking Detections 58 | . 7 . 12 1 . . 5 4 3 13 2 . . 9 . 2 Full Trace Events 12 | . 3 . 2 . . . 1 . 1 4 1 . . . . . Feedback Events 1 | . 1 . . . . . . . . . . . . . . . Corruption 1 | . 1 . . . . . . . . . . . . . . . Feedback Blocked . | . . . . . . . . . . . . . . . . . Robot Schematics Acquired . | . . . . . . . . . . . . . . . . . Robots Built . | . . . . . . . . . . . . . . . . . Authchips . | . . . . . . . . . . . . . . . . . Time . | . . . . . . . . . . . . . . . . . Total Robot Build Rating . | . . . . . . . . . . . . . . . . . Part Schematics Acquired 5 | . . . 2 . . . . . 1 1 . . . . . 1 Parts Built 4 | . . . . . . . . . . 2 . . . 1 . 1 Authchips 2 | . . . . . . . . . . . . . . 1 . 1 Time 354 | . . . . . . . . . . 212 . . . 106 . 36 Total Part Build Rating 21 | . . . . . . . . . . 12 . . . 6 . 3 Parts Repaired 3 | . . . . . . . . . . . . . . 2 . 1 Time 113 | . . . . . . . . . . . . . . 88 . 25 Parts Recycled . | . . . . . . . . . . . . . . . . . Recycled Matter . | . . . . . . . . . . . . . . . . . Retrieved Matter . | . . . . . . . . . . . . . . . . . Retrieved Components 2 | . . . . . . . . . . . . . . 2 . . Parts Scanalyzed 4 | . . . 2 . . . . . 1 1 . . . . . . Part Schematics Acquired 4 | . . . 2 . . . . . 1 1 . . . . . . Parts Damaged 1 | . . . . . . . . . . 1 . . . . . . Bothacking | -11 -10 -10 -9 -9 -9 -8 -8 -8 -8 -7 -7 -7 -7 -6 -6 -6 ------------ Run | Yrd Mat Min Mat Min Exi Min Mat Gar Mat Fac Gar Fac DSF Fac Was Fac Used RIF Installer 2 | . . . . . . . . 1 . . 1 . . . . . Command Fork 1 | . . . . . . . . . . . 1 . . . . . Robots Hacked 43 | . . . . . . . . . . 12 18 . 1 7 . 5 Non-combat 7 | . . . . . . . . . . 5 . . . 2 . . Combat 36 | . . . . . . . . . . 7 18 . 1 5 . 5 Robot Hacks Applied 50 | . . . . . . . . . . 17 20 . 1 7 . 5 parse_system 1 | . . . . . . . . . . 1 . . . . . . no_distress 4 | . . . . . . . . . . 2 . . . 2 . . find_chute 1 | . . . . . . . . . . 1 . . . . . . ignore_repairs 1 | . . . . . . . . . . 1 . . . . . . find_recycling 1 | . . . . . . . . . . 1 . . . . . . ignore_parts 1 | . . . . . . . . . . 1 . . . . . . reboot_propulsion 1 | . . . . . . . . . . 1 . . . . . . scatter_targeting 2 | . . . . . . . . . . . 2 . . . . . spike_heat 1 | . . . . . . . . . . . 1 . . . . . overload_power 2 | . . . . . . . . . . 1 . . . 1 . . disable_weapons 1 | . . . . . . . . . . . 1 . . . . . reboot_system 6 | . . . . . . . . . . 1 3 . . 1 . 1 go_dormant 2 | . . . . . . . . . . 2 . . . . . . overwrite_iff 4 | . . . . . . . . . . . 3 . . . . 1 formatsys_high 22 | . . . . . . . . . . 5 10 . 1 3 . 3 Relay Couplers Released 32 | . . . . . . . . 9 . . 23 . . . . . Machine Destruction 32 | . . . . . . . . 9 . . 23 . . . . . Attached 21 | . . . . . . . . . . 6 10 . 1 2 . 2 Fabnet Peak Effective % . | . . . . . . . . . . . . . . . . . Robots Rewired 13 | . . . . . . . . 3 1 . 9 . . . . . Allies Hacked 1 | . . . . . . . . . . 1 . . . . . . Hacks Repelled . | . . . . . . . . . . . . . . . . . Allies | -11 -10 -10 -9 -9 -9 -8 -8 -8 -8 -7 -7 -7 -7 -6 -6 -6 -------- Run | Yrd Mat Min Mat Min Exi Min Mat Gar Mat Fac Gar Fac DSF Fac Was Fac Total Allies 49 | . . 3 . 1 . . . 5 1 5 24 . 1 3 2 4 Largest Group 16 | . . 3 3 1 . . . 5 1 2 16 16 16 14 5 2 Highest-Rated Group 486 | . . 40 40 31 . . . 150 24 61 476 476 486 366 222 32 Highest-Rated Ally 95 | . . 16 16 31 . . . 39 24 32 95 95 95 90 90 32 Total Orders 7 | . . . . . . . . . . 2 . . 2 2 . 1 STAY 2 | . . . . . . . . . . 1 . . 1 . . . FOLLOW 2 | . . . . . . . . . . 1 . . 1 . . . AID 1 | . . . . . . . . . . . . . . 1 . . EXPLORE 2 | . . . . . . . . . . . . . . 1 . 1 Ally Attacks 459 | . . 17 32 3 . . . 45 6 28 79 . 33 116 77 23 Total Damage 10371 | . . 187 345 . . . . 1022 189 710 2076 . 944 2620 1945 333 Kills 78 | . . 4 6 . . . . 12 1 8 17 . 9 17 2 2 Allies Corrupted . | . . . . . . . . . . . . . . . . . Allies Melted . | . . . . . . . . . . . . . . . . . Intel | -11 -10 -10 -9 -9 -9 -8 -8 -8 -8 -7 -7 -7 -7 -6 -6 -6 ------- Run | Yrd Mat Min Mat Min Exi Min Mat Gar Mat Fac Gar Fac DSF Fac Was Fac Robot Analysis Total 1 | . . . 1 . . . . . . . . . . . . . Derelict Logs Recovered 6 | . . 3 . 3 . . . . . . . . . . . . Drone Launches 2 | . . . . . . . . . . . . . . 1 . 1 Drone Recoveries 1 | . . . . . . . . . . . . . . 1 . . Exploration | -11 -10 -10 -9 -9 -9 -8 -8 -8 -8 -7 -7 -7 -7 -6 -6 -6 ------------- Run | Yrd Mat Min Mat Min Exi Min Mat Gar Mat Fac Gar Fac DSF Fac Was Fac Turns Passed 15612 | 57 729 454 1623 926 256 878 744 2418 567 2405 1656 49 255 1543 128 924 Spaces Moved 10438 | 46 556 295 1093 733 213 673 448 1382 292 1701 974 33 168 1135 85 611 Core 8 | 8 . . . . . . . . . . . . . . . . Treads 21 | . . . . . . . 14 7 . . . . . . . . Legs 302 | . . . . . . . . . . . 302 . . . . . Wheels 9985 | 38 556 295 1093 733 213 673 434 1375 279 1592 672 33 168 1135 85 611 Hover . | . . . . . . . . . . . . . . . . . Flight 122 | . . . . . . . . . 13 109 . . . . . . Fastest Speed 50 | 50 90 130 105 115 120 120 110 110 108 95 95 105 93 100 115 100 Average Speed 115 | 83 103 138 113 116 120 120 122 128 131 107 108 105 103 112 115 113 Slowest Speed 330 | 90 145 145 155 120 120 120 232 232 135 215 330 105 105 130 115 135 Overloaded Moves . | . . . . . . . . . . . . . . . . . Propulsion Burnouts . | . . . . . . . . . . . . . . . . . Robots Hopped . | . . . . . . . . . . . . . . . . . Cave-ins Triggered . | . . . . . . . . . . . . . . . . . Exploration Rate (%) 56 | 4 79 70 78 97 60 97 40 92 27 27 82 2 80 30 71 17 Regions Visited 16 Branch Regions 4 Pre-discovered Areas 4 | . . 2 . 2 . . . . . . . . . . . . Known Exits Taken 5 | . . . 1 . . . 1 . 1 1 . 1 . . . . Unknown Exits Taken 6 | 1 1 1 . 1 1 1 . . . . . . . . . . Scrap Searched 5 | . . 1 . 3 . 1 . . . . . . . . . . Spaces Dug 150 | . . . . . . . . 13 2 6 86 . . 6 . 37 Terrain Destroyed 874 | . 83 15 146 . . 146 39 57 112 14 95 . . 22 46 99 Melee 52 | . . . . . . . . 13 2 6 22 . . 4 . 5 Projectile 55 | . . . . . . . . 5 22 8 . . . 18 1 1 AOE 767 | . 83 15 146 . . 146 39 39 88 . 73 . . . 45 93 Terrain Rammed . | . . . . . . . . . . . . . . . . . Walls Destroyed . | . . . . . . . . . . . . . . . . . Machines Disabled . | . . . . . . . . . . . . . . . . . Actions | -11 -10 -10 -9 -9 -9 -8 -8 -8 -8 -7 -7 -7 -7 -6 -6 -6 --------- Run | Yrd Mat Min Mat Min Exi Min Mat Gar Mat Fac Gar Fac DSF Fac Was Fac Total 12881 | 64 627 332 1355 784 214 719 586 1770 390 2156 1391 47 249 1335 98 764 Wait 862 | 7 1 26 88 28 . 28 59 75 25 223 93 13 29 98 . 69 Move 10424 | 45 555 294 1092 732 212 672 448 1381 291 1700 973 32 167 1135 84 611 Hop . | . . . . . . . . . . . . . . . . . Pick Up 219 | 6 14 5 37 3 1 1 20 35 3 42 25 1 5 13 . 8 Fast Attach 36 | . 1 . 10 1 . . . 2 1 3 8 . 8 2 . . Attach 116 | 6 2 . 14 . . 1 15 7 5 29 8 . 1 12 2 14 Detach 13 | . . . 1 . . . . . 2 1 1 . . 2 2 4 Swap 146 | . 9 3 15 3 . 4 11 27 5 27 20 . 2 10 1 9 Drop 161 | . 2 . 34 5 1 1 4 34 5 29 22 1 12 10 . 1 Fire 526 | . 43 4 64 12 . 12 29 117 41 81 45 . 1 41 9 27 Melee 179 | . . . . . . . . 25 2 20 99 . . 12 . 21 Ram 1 | . . . . . . . . . . 1 . . . . . . Kick . | . . . . . . . . . . . . . . . . . Crush . | . . . . . . . . . . . . . . . . . Escape Stasis 97 | . . . . . . . . 32 . . 41 . 24 . . . Rewire 101 | . . . . . . . . 35 10 . 56 . . . . . Trap . | . . . . . . . . . . . . . . . . . Miscellaneous . | . . . . . . . . . . . . . . . . . Route ------- -11/Scrapyard -10/Materials (discovered 3 exits: *Mat x2 / [*Min]) -10/Mines -9/Materials (discovered 3 exits: *Mat x2 / *Min) -9/Mines (discovered 4 exits: *Mat x2 / *Exi / [*Zio]) -9/Exiles -8/Mines (discovered 2 exits: *Mat x2) -8/Materials (discovered 4 exits: *Fac x3 / Gar) -8/Garrison (discovered 4 exits: *Mat x4) -8/Materials -7/Factory (discovered 3 exits: *Fac / [*Sto] / Gar) -7/Garrison (discovered 3 exits: *Fac x3) -7/Factory -7/DSF -6/Factory (discovered 6 exits: *Fac x4 / *Low x2) -6/Waste -6/Factory History --------- Turn | Location | Event 24 | -11/Scrapyard | Discovered new exit (range 15) 58 | -11/Scrapyard | Entered Materials 316 | -10/Materials | Build established: Mutant 463 | -10/Materials | Discovered new exit (range 9) 517 | -10/Materials | Discovered new exit (range 11) 589 | -10/Materials | Core integrity fell below 50% 700 | -10/Materials | Discovered new exit (range 3) 787 | -10/Materials | Entered Mines 802 | -10/Mines | Assisted by bots powering up and referring to "LRC-V3" 814 | -10/Mines | Met a Derelict bent on vengeance 872 | -10/Mines | Learned location of Zion (-7) 986 | -10/Mines | Learned Materials garrison access intel 1231 | -10/Mines | Discovered new exit (range 5) 1241 | -10/Mines | Entered Materials 1241 | -9/Materials | Accompanied by 3 allies 1241 | -9/Materials | Evolved 2 slots: Propulsion x1, Utility x1 1508 | -9/Materials | Identified exit to Mines 2111 | -9/Materials | Discovered new exit (range 16) 2493 | -9/Materials | Discovered new exit (range 11) 2864 | -9/Materials | Entered Mines 2873 | -9/Mines | Escorted by a lone wolf Derelict 2893 | -9/Mines | Learned location of Storage (-7) 2917 | -9/Mines | Discovered new exit (range 7) 2918 | -9/Mines | A Derelict revealed a hidden shortcut to a safe place 3056 | -9/Mines | Learned Materials stockpile data 3119 | -9/Mines | Assembled infested the area 3233 | -9/Mines | Learned 2 Materials zone layouts 3333 | -9/Mines | Discovered new exit (range 5) 3378 | -9/Mines | Discovered new exit (range 8) 3790 | -9/Mines | Entered Exiles 3818 | -9/Exiles | Met 8R-AWN 3838 | -9/Exiles | Met EX-HEX 3873 | -9/Exiles | Build established: Scavenger-Mutant 3874 | -9/Exiles | Met EX-BIN 3890 | -9/Exiles | Aligned with FarCom system 3891 | -9/Exiles | Given EX-Vault access code 3921 | -9/Exiles | Opened EX-Vault 3930 | -9/Exiles | Found Supersonic Drone Bay 3956 | -9/Exiles | Warned to stay clear of 0b10 Research branches 3990 | -9/Exiles | Met EX-DEC 4032 | -9/Exiles | Discovered new exit (range 14) 4046 | -9/Exiles | Left Exiles lab with Supersonic Drone Bay 4046 | -9/Exiles | Entered Mines 4274 | -8/Mines | Discovered new exit (range 10) 4455 | -8/Mines | Discovered new exit (range 6) 4924 | -8/Mines | Entered Materials 4924 | -8/Materials | Evolved 2 slots: Utility x2 4927 | -8/Materials | Loaded intel: 1 garrison access location 5219 | -8/Materials | Destroyed 10 combat bots 5225 | -8/Materials | Lost 5 parts (1p1n1u2w) 5547 | -8/Materials | Discovered new exit (range 15) 5606 | -8/Materials | Identified exit to Factory 5654 | -8/Materials | Build established: Mutant 5668 | -8/Materials | Identified exit to Garrison 5668 | -8/Materials | Entered Garrison 5742 | -8/Garrison | Triggered checkpoint 5748 | -8/Garrison | Triggered checkpoint 6002 | -8/Garrison | Triggered checkpoint 6005 | -8/Garrison | Triggered checkpoint 6209 | -8/Garrison | Triggered checkpoint 6289 | -8/Garrison | Build established: Scavenger-Mutant 6420 | -8/Garrison | Discovered new exit (range 11) 6430 | -8/Garrison | Rescued a captive Derelict 6432 | -8/Garrison | Rescued a captive Derelict 6644 | -8/Garrison | Triggered checkpoint 6715 | -8/Garrison | Discovered new exit (range 5) 6794 | -8/Garrison | Discovered new exit (range 11) 6807 | -8/Garrison | Triggered checkpoint 6808 | -8/Garrison | Core integrity fell below 50% 7136 | -8/Garrison | Discovered new exit (range 11) 7176 | -8/Garrison | Triggered checkpoint 7500 | -8/Garrison | Triggered checkpoint 7513 | -8/Garrison | Discovered new exit (range 45) 7513 | -8/Garrison | Discovered new exit (range 61) 7513 | -8/Garrison | Discovered new exit (range 84) 7513 | -8/Garrison | Discovered new exit (range 32) 7648 | -8/Garrison | Spotted B-75 Beast 7676 | -8/Garrison | Allies destroyed B-75 Beast 7855 | -8/Garrison | Spotted B-75 Beast 7884 | -8/Garrison | Allies destroyed B-75 Beast 7915 | -8/Garrison | Installed Relay Interface Framework 7991 | -8/Garrison | Garrison Relay disabled 8086 | -8/Garrison | Entered Materials 8086 | -8/Materials | Accompanied by 1 ally 8486 | -8/Materials | First assault squad dispatched 8631 | -8/Materials | Discovered exit to Factory (range 16) 8638 | -8/Materials | Core integrity fell below 20% 8653 | -8/Materials | Entered Factory 8653 | -7/Factory | Evolved 2 slots: Propulsion x1, Utility x1 8665 | -7/Factory | Lost 7 parts (2n4u1w) 8887 | -7/Factory | Build established: Mutant 9237 | -7/Factory | Fabricated Adv. System Shield? 9743 | -7/Factory | Identified exit to Garrison 9923 | -7/Factory | Build established: Bothacker-Mutant 10299 | -7/Factory | Discovered new exit (range 5) 10408 | -7/Factory | System corruption reached 10% 10447 | -7/Factory | Discovered new exit (range 7) 10751 | -7/Factory | Fabricated Adv. System Shield (x1) 11058 | -7/Factory | Entered Garrison 11058 | -7/Garrison | Accompanied by 1 ally 11098 | -7/Garrison | Triggered checkpoint 11111 | -7/Garrison | Triggered checkpoint 11209 | -7/Garrison | Discovered new exit (range 3) 11232 | -7/Garrison | Triggered checkpoint 11266 | -7/Garrison | Garrison Relay disabled 11409 | -7/Garrison | Discovered new exit (range 11) 11430 | -7/Garrison | Triggered checkpoint 11438 | -7/Garrison | Garrison Relay disabled 11508 | -7/Garrison | Rescued a captive Derelict 11641 | -7/Garrison | Lost 3 parts (3n) 11656 | -7/Garrison | Triggered checkpoint 11726 | -7/Garrison | Triggered checkpoint 11751 | -7/Garrison | Garrison Relay disabled 11933 | -7/Garrison | Expanded RIF knowledge: Command Fork 12096 | -7/Garrison | Found embedded Infiltrators 12120 | -7/Garrison | Triggered checkpoint 12133 | -7/Garrison | Garrison Relay disabled 12192 | -7/Garrison | Learned Factory security intel 12213 | -7/Garrison | Discovered new exit (range 4) 12388 | -7/Garrison | Triggered checkpoint 12425 | -7/Garrison | Garrison Relay disabled 12714 | -7/Garrison | Entered Factory 12714 | -7/Factory | Accompanied by 16 allies 12750 | -7/Factory | Identified exit to DSF 12763 | -7/Factory | Entered DSF 12763 | -7/DSF | Accompanied by 16 allies 12801 | -7/DSF | Additional patrols routed to DSF 12879 | -7/DSF | Discovered new exit (range 15) 12966 | -7/DSF | Sterilization system engaged 12986 | -7/DSF | Ambient heat levels rising (+10) 13001 | -7/DSF | Ambient heat levels rising (+10) 13016 | -7/DSF | Ambient heat levels rising (+10) 13018 | -7/DSF | Entered Factory 13018 | -6/Factory | Accompanied by 14 allies 13018 | -6/Factory | Evolved 2 slots: Utility x2 13094 | -6/Factory | Garrison activated, responded to threat 13160 | -6/Factory | Fabricated Adv. System Shield? 13163 | -6/Factory | Lost 4 allies 13343 | -6/Factory | Identified exit to Factory 13393 | -6/Factory | Build established: Commander-Mutant 13446 | -6/Factory | Discovered new exit (range 5) 13475 | -6/Factory | Lost 6 allies 13628 | -6/Factory | Found Prototype Launcher 13629 | -6/Factory | Identified Scatter Rocket Array 13738 | -6/Factory | Build established: Hacker-Mutant 14051 | -6/Factory | Identified exit to Lower Caves 14082 | -6/Factory | Build established: Bothacker-Mutant 14383 | -6/Factory | Repaired Arm. Huge Wheel 14429 | -6/Factory | Repaired Arm. Huge Wheel 14561 | -6/Factory | Sucked down chute 14561 | -6/Factory | Entered Waste 14561 | -6/Waste | Met up with 1 ally sucked down the chute earlier 14562 | -6/Waste | Met a frightened Derelict 14576 | -6/Waste | EMP discharged 14593 | -6/Waste | Spotted C-40 Crusher 14599 | -6/Waste | Destroyed C-40 Crusher 14604 | -6/Waste | Spotted C-40 Crusher 14606 | -6/Waste | Spotted C-40 Crusher 14619 | -6/Waste | Spotted C-40 Crusher 14620 | -6/Waste | 3 allies followed down the chute 14623 | -6/Waste | Allies destroyed C-40 Crusher 14630 | -6/Waste | Spotted C-40 Crusher 14650 | -6/Waste | Spotted C-40 Crusher 14664 | -6/Waste | Crushed by Compactor (0 parts destroyed, 2 dropped) 14667 | -6/Waste | Discovered new exit (range 16) 14676 | -6/Waste | EMP discharged 14676 | -6/Waste | System corruption reached 10% 14678 | -6/Waste | Lost 3 allies 14689 | -6/Waste | Entered Factory 15171 | -6/Factory | Repaired Remote Shield 15321 | -6/Factory | Lost 3 allies 15415 | -6/Factory | Fabricated Hacking Suite (x1) 15491 | -6/Factory | Garrison activated, responded to threat 15576 | -6/Factory | Core integrity fell below 50% 15601 | -6/Factory | Core integrity fell below 20% 15612 | -6/Factory | P-60 Hacker assimilated allied S-27 Virus 15613 | -6/Factory | Destroyed by S-27 Virus with Autogun Last Messages --------------- U-05 Engineer builds a Wall. U-05 Engineer builds a Door. Jacked S-27 Virus... >>overwrite_iff Rewriting IFF filter. U-05 Engineer lays Concrete. U-05 Engineer builds a Wall. U-05 Engineer lays Concrete. Jacked S-27 Virus... U-05 Engineer lays Concrete. U-05 Engineer builds a Wall. Remote Datajack destroyed. Destroyed Gravmag System. P-60 Hacker system corrupted by crushing effect. P-60 Hacker knocked back. System corrupted: Arm. Wheel rejected. P-60 Hacker hacks S-27 Virus, assimilated. [Achievement: First Step to Greatness] [Achievement: 5k Club] [Achievement: 10k Club] Map ----- +----------------------------------------------------+ | ?????????????????????????????????????????????????? | | ???? ????????????????????????????????????????? | | ???# ## ?????????????????????????????????????? | | ???# ## ?????????????????????????????????????? | | ???# ## ?????????????????????????????????????? | | ???# ## ?????????????????????????????????????? | | ???# ### ????????????????????????????????? | | ???# # ?????????????????????????????????? | | ???# +??????????????????????????????????? | | ???# """ #??????????????????????????????????? | | ???# ^ """ #??????????????????????????????????? | | ???# """ #??????????????????????????????????? | | ??## #??????????????????????????????????? | | ??# !! #?????????????????#####????????????? | | ??# !! #????????????????## #????????????? | | ??# #??###????####???# # ????????????? | | ### ####"######T ##### ################ | | !%"" g /[ | | """ [/[ | | ^ !F" | | [! """ !% | | [ "" = % | | * | | = | | #######################/####### ############ | | ????????????????## =p @ # """"= ##?? | | ????????????????## %# # "F "%[ "#?? | | ????????????????## =#! " ##?? | | ????????????????## / # # """ """ #??? | | ????????????????#; */ [# # """ """ #??? | | ????????????????#; / s " u # """ """ #??? | | ????????????????## """ ## ## #??? | | ?????????????????# s """" ### ! #??? | | ?????????????????#! """" #####?###########??? | | ?????????????????# s #??????????????????? | | ?????????????????# "" "" / #??????????????????? | | ?????????????????# ""G"" #??????????????????? | | ?????????????????##############??????????????????? | | ?????????????????????????????????????????????????? | | ?????????????????????????????????????????????????? | | | | | | | | | | | | | | | | | | | | | +----------------------------------------------------+ Best States ------------- Heat Dissipation 61 Coolant Potential 50 Energy Generation 19 Energy Capacity 500 Matter Stores 300 Matter Capacity 300 Sight Range 16 Terrain Scan Density 10 Armor Coverage 1200 Resistance: KI 20 Core Shielding 20 Utility Shielding 33 Weapon Shielding 33 Evasion (%) 55 Melee Accuracy 8 Target Analysis 5 Recoil Reduction 2 Particle Charging 15 Offensive Hacking 20 Defensive Hacking 28 Relay Coupler Types 4 Relay Coupler Value 117 Authchip Count 3 Item Schematics ----------------- Hacking Suite | -9/Materials | Scanalyzed Hvy. Ion Engine | -9/Materials | Scanalyzed Adv. System Shield | -8/Materials | Scanalyzed Adv. Weight Redist. System | -7/Factory | Scanalyzed Mni. Drone Bay | -6/Factory | Hacked Robot Schematics ------------------ None Fabricated ------------ Adv. System Shield | x1 | -7/Factory Adv. System Shield | x1 | -7/Factory Adv. System Shield | x1 | -6/Factory | Authchip Hacking Suite | x1 | -6/Factory | Authchip Alien Tech Used ----------------- None Achievements -------------- 10k Club 5k Club A New Friend Assimilation Complete Backstab Close Call Crack Shot Dramatic Entrance Dynamic Key Error 47 Everything Is Under Control Factory Defaults First Step to Greatness Generalissimo Hey, That's Mine! I Survived The Infestation It's Just You Just What I Needed Loot Pinata Made in Tau Ceti IV One Hack Too Far Part-time Excavator Part-time Mechanic Party Time Please Form A Line Power Corrupts Quantum Hacking Remodeling Risk Taker Serviceable Loadout Shopping List Significant Disruption Storm Trooper System Compromised The More The Merrier Tourist Troublemaker True Hacker Uninvited Guest root@ Challenges ------------ None Game ------ Seed ShadingAdvancedFacilitator Manual? 0 Play Time 03:20:45 Cumulative 3.3 hours Start 2024.04.09 @ 17:43:10 End 2024.04.10 @ 11:30:04 Sessions 7 Manual Loads 0 Difficulty Rogue Special Mode None Game No. 1 Rogue 1 Adventurer 0 Explorer 0 Win Type - Total 0 Types 0/0/0/0/0/0/0/0/0 Lore% 1 Gallery% 10 Achievement% 15 Wizard Run 0 Options --------- Layout 1 ASCII 0 Keyboard 0 Movement Mouse Keybinds 0 Fullscreen 1 Font 24/Smallcaps Map View 50x35 Zoom Use 0% Tactical HUD 0 Map Filters NONE Filters NONE Steam 0 RUN: 61ea8d20-6f61-4cf4-ac0e-ad44d9e072e7